bitfinex/quotes_SOLUSD_20260211
["timestamp","ask_amount","ask_price","bid_price","bid_amount"]
[1770844049126,1.35871801,80.203,80.17,12.8390965]
[1770844050129,1.35871801,80.179,80.14,12.8390965]
[1770844050322,1.35871801,80.177,80.131,1.22103537]
[1770844051026,1.35871801,80.177,80.14,12.8390965]
[1770844051226,1.35871801,80.177,80.131,1.22103537]
[1770844051441,1.35871801,80.177,80.14,12.8390965]
[1770844052141,1.35871801,80.169,80.132,43.6779314]
[1770844052818,1.35871801,80.169,80.133,1.21621153]
[1770844053034,1.35871801,80.169,80.14,12.8390965]
[1770844054045,1.35871801,80.168,80.132,12.47940897]
[1770844054351,1.35871801,80.168,80.111,52.42]
[1770844054352,12.8390965,80.16,80.111,52.42]
[1770844054536,1.35871801,80.149,80.114,12.48215848]
[1770844055643,1.35871801,80.139,80.104,31.20933453]
[1770844056342,1.35871801,80.129,80.095,12.48505021]
[1770844057058,1.35871801,80.144,80.11,12.8390965]
[1770844057248,1.35871801,80.144,80.101,1.20869332]
[1770844057925,1.35871801,80.139,80.102,12.48408279]
[1770844058747,12.47617077,80.153,80.112,1.2050625]
[1770844058917,12.47617077,80.153,80.1,12.8390965]
[1770844058918,1.35871801,80.139,80.1,12.8390965]
[1770844059123,1.35871801,80.129,80.096,12.48487497]
[1770844059323,1.35871801,80.129,80.081,31.21823238]
[1770844059324,1.35871801,80.119,80.081,12.48735655]
[1770844059949,1.35871801,80.118,80.082,1.20327831]
[1770844060640,1.35871801,80.118,80.081,12.48735655]
[1770844060641,1.35871801,80.118,80.077,12.48787515]
[1770844060839,1.35871801,80.118,80.067,52.42]
[1770844060840,1.35871801,80.099,80.068,12.48938209]
[1770844061040,1.35871801,80.099,80.067,52.42]
[1770844061750,1.35871801,80.099,80.062,12.49023086]
[1770844061931,1.35871801,80.097,80.051,12.49203632]
[1770844062243,1.35871801,80.097,80.052,1.19804776]
[1770844062750,1.35871801,80.097,80.06,12.8390965]
[1770844063926,1.35871801,80.095,80.06,25.32969429]
[1770844064439,1.35871801,80.095,80.06,12.49059779]
[1770844064744,1.35871801,80.095,80.056,12.49117544]
[1770844064930,1.35871801,80.089,80.056,12.49117544]
[1770844065746,1.35871801,80.089,80.056,13.68417082]
[1770844066338,1.35871801,80.088,80.056,13.68417082]
[1770844067552,12.48642101,80.087,80.056,13.68417082]
[1770844067851,12.8390965,80.1,80.05,12.8390965]
[1770844067852,12.48588505,80.091,80.052,1.18972311]
[1770844068051,12.8390965,80.13,80.081,1.29242977]
[1770844068255,12.8390965,80.13,80.091,1.29242977]
[1770844069443,12.48143386,80.119,80.083,13.77947446]
[1770844069849,12.8390965,80.11,80.082,52.48]
[1770844070047,1.35871801,80.109,80.082,52.48]
[1770844071753,1.32923183,80.107,80.082,52.48]
[1770844072346,1.32923183,80.089,80.047,1.30463408]
[1770844072659,1.32923183,80.095,80.061,1.30463408]
[1770844075140,1.32923183,80.089,80.061,1.30463408]
[1770844075356,12.4846422,80.099,80.063,1.30463408]
[1770844076332,1.32923183,80.098,80.063,1.30463408]
[1770844076733,1.32923183,80.098,80.051,1.30463408]
[1770844076934,1.32923183,80.098,80.061,1.30463408]
[1770844077135,54.74,80.103,80.073,1.30463408]
[1770844077336,12.48221284,80.114,80.081,1.30463408]
[1770844077854,1.32923183,80.113,80.081,1.30463408]
[1770844078459,1.32923183,80.109,80.075,1.30463408]
[1770844079572,13.81237958,80.108,80.075,1.30463408]
[1770844079762,45.02024895,80.108,80.075,1.30463408]
[1770844080146,1.32923183,80.107,80.075,1.30463408]
[1770844080538,1.32923183,80.107,80.059,31.22686534]
[1770844080539,12.48261176,80.112,80.081,1.30463408]
[1770844080734,1.32923183,80.111,80.074,12.48841262]
[1770844080941,1.32923183,80.109,80.075,1.30463408]
[1770844081647,13.81237958,80.108,80.077,1.30463408]
[1770844082558,12.48262403,80.112,80.091,1.30463408]
[1770844082769,1.32923183,80.111,80.077,1.30463408]
[1770844082960,1.32923183,80.111,80.081,1.30463408]
[1770844083544,1.32923183,80.127,80.1,12.8390965]
[1770844083845,12.47983053,80.13,80.101,1.30463408]
[1770844084443,1.32923183,80.143,80.111,1.30463408]
[1770844084648,12.47841151,80.139,80.111,1.30463408]
[1770844085153,12.47688441,80.149,80.121,1.30463408]
[1770844085351,1.32923183,80.148,80.121,1.30463408]
[1770844085842,1.32923183,80.148,80.112,1.30463408]
[1770844086166,1.32923183,80.146,80.11,12.8390965]
[1770844086556,1.32923183,80.144,80.1,12.8390965]
[1770844086866,1.32923183,80.119,80.081,1.30463408]
[1770844087850,1.32923183,80.099,80.065,1.30463408]
[1770844088050,1.32923183,80.097,80.065,13.7943796]
[1770844088368,1.32923183,80.089,80.048,1.30463408]
[1770844088659,1.32923183,80.089,80.05,14.14373058]
[1770844088863,54.82,80.096,80.061,1.30463408]
[1770844089262,1.32923183,80.095,80.061,1.30463408]
[1770844090362,54.82,80.096,80.071,1.30463408]
[1770844090547,12.4841562,80.102,80.071,1.30463408]
[1770844091760,12.48329967,80.108,80.081,1.30463408]
[1770844092347,12.48329967,80.108,80.081,13.7919782]
[1770844092850,12.48329967,80.108,80.082,1.30463408]
[1770844093175,1.32923183,80.107,80.082,1.30463408]
[1770844093352,1.32923183,80.107,80.076,12.4880416]
[1770844093553,1.32923183,80.107,80.076,13.79267568]
[1770844093966,1.32923183,80.107,80.077,1.30463408]
[1770844094170,1.32923183,80.107,80.081,1.30463408]
[1770844094350,1.32923183,80.107,80.083,1.30463408]
[1770844094578,54.84,80.109,80.083,1.30463408]
[1770844096154,13.81127549,80.116,80.083,1.30463408]
[1770844096557,13.81127549,80.116,80.085,1.30463408]
[1770844096962,1.32923183,80.115,80.085,1.30463408]
[1770844099072,1.32923183,80.113,80.086,12.48657692]
[1770844099460,1.32923183,80.113,80.086,43.70301924]
[1770844099661,1.32923183,80.113,80.086,12.48657692]
[1770844099862,1.32923183,80.113,80.082,12.48705188]
[1770844100061,12.4817317,80.118,80.083,1.30463408]
[1770844100263,12.84984141,80.12,80.083,1.30463408]
[1770844100264,1.32923183,80.12,80.083,1.30463408]
[1770844100869,1.32923183,80.12,80.09,12.84984141]
[1770844101367,1.399652,80.163,80.111,1.34496545]
[1770844101572,1.399652,80.163,80.13,12.84984141]
[1770844101968,1.399652,80.163,80.14,12.84984141]
[1770844103274,1.399652,80.161,80.14,12.84984141]
[1770844103471,12.47473865,80.162,80.126,12.48029996]
[1770844103472,12.84984141,80.16,80.126,12.48029996]
[1770844103675,1.399652,80.159,80.127,1.34496545]
[1770844103876,1.399652,80.159,80.13,12.84984141]
[1770844105262,1.399652,80.157,80.13,12.84984141]
[1770844105960,1.399652,80.157,80.12,12.84984141]
[1770844106173,62.36513362,80.174,80.118,12.48147896]
[1770844106174,12.47433375,80.165,80.14,12.84984141]
[1770844106355,1.399652,80.164,80.14,12.84984141]
[1770844107684,1.36243364,80.175,80.15,12.84984141]
[1770844109776,1.36243364,80.173,80.15,12.84984141]
[1770844110679,1.36243364,80.173,80.15,25.32637503]
[1770844111280,1.36243364,80.173,80.14,12.84984141]
[1770844111465,1.36243364,80.173,80.142,12.47778044]
[1770844111983,1.36243364,80.171,80.142,12.47778044]
[1770844113782,55.0,80.176,80.151,1.27055574]
[1770844113978,67.47265903,80.176,80.151,1.27055574]
[1770844114164,68.83509267,80.176,80.151,1.27055574]
[1770844114475,55.0,80.176,80.16,12.84984141]
[1770844114683,1.36243364,80.182,80.16,12.84984141]
[1770844114876,1.36243364,80.182,80.15,14.12039715]
[1770844115070,1.36243364,80.182,80.151,1.27055574]
[1770844116086,1.36243364,80.182,80.152,12.47629503]
[1770844117362,1.36243364,80.18,80.152,12.47629503]
[1770844119180,1.36243364,80.18,80.153,1.27055574]
[1770844121487,1.36243364,80.18,80.16,12.84984141]
[1770844121789,1.36243364,80.18,80.154,12.47598373]
[1770844122687,1.36243364,80.189,80.17,12.84984141]
[1770844122894,31.1699819,80.206,80.171,1.27055574]
[1770844122895,1.36243364,80.196,80.171,1.27055574]
[1770844125582,1.36243364,80.204,80.18,12.84984141]
[1770844126495,1.36243364,80.204,80.18,14.12039715]
[1770844126690,1.36243364,80.204,80.181,1.27055574]
[1770844127794,1.36243364,80.204,80.182,12.47162704]
[1770844128178,1.36243364,80.202,80.18,12.84984141]
[1770844128571,1.36243364,80.202,80.181,12.47178259]
[1770844130081,12.84984141,80.22,80.181,12.47178259]
[1770844130082,1.36243364,80.214,80.182,1.27055574]
[1770844130284,1.36243364,80.214,80.191,1.27055574]
[1770844131395,1.36113389,80.213,80.19,4.784022]
[1770844133303,1.36113389,80.213,80.191,12.47022733]
[1770844135093,1.36113389,80.211,80.173,1.34047727]
[1770844135297,1.36113389,80.209,80.17,4.784022]
[1770844135683,1.36113389,80.209,80.18,4.784022]
[1770844135891,1.36113389,80.217,80.191,1.34047727]
[1770844136094,1.36113389,80.238,80.211,1.34047727]
[1770844136306,1.36113389,80.238,80.19,4.784022]
[1770844136507,1.36113389,80.236,80.191,1.34047727]
[1770844136802,1.36113389,80.236,80.2,4.784022]
[1770844137098,1.36113389,80.234,80.193,1.34047727]
[1770844137499,1.36113389,80.229,80.19,4.784022]
[1770844138007,1.36113389,80.229,80.187,12.47084938]
[1770844138382,1.36113389,80.229,80.19,4.784022]
[1770844140207,1.36113389,80.227,80.192,1.34047727]
[1770844140424,56.52113389,80.226,80.201,1.34047727]
[1770844140912,55.16,80.226,80.201,1.34047727]
[1770844141120,1.36113389,80.241,80.211,1.34047727]
[1770844141891,0.1,80.25,80.221,1.34047727]
[1770844142111,1.36113389,80.249,80.221,1.34047727]
[1770844142312,1.36113389,80.249,80.222,12.46540849]
[1770844142520,1.36113389,80.249,80.223,1.34047727]
[1770844142810,0.1,80.25,80.223,1.34047727]
[1770844143006,1.46113389,80.25,80.223,1.34047727]
[1770844143205,0.1,80.25,80.231,1.34047727]
[1770844143718,0.1,80.25,80.22,12.80400112]
[1770844143719,1.36113389,80.249,80.22,12.80400112]
[1770844143923,1.36113389,80.249,80.207,1.34047727]
[1770844143924,1.36113389,80.248,80.21,12.80400112]
[1770844144107,1.36113389,80.239,80.187,1.34047727]
[1770844144288,12.46447624,80.228,80.182,12.47162704]
[1770844144488,55.14,80.238,80.182,12.47162704]
[1770844144489,1.36113389,80.227,80.201,1.34047727]
[1770844145308,1.36113389,80.227,80.2,12.80400112]
[1770844146810,1.36113389,80.225,80.195,12.46955884]
[1770844146991,1.36113389,80.249,80.211,1.34047727]
[1770844147195,1.36113389,80.248,80.211,1.34047727]
[1770844148208,1.36113389,80.246,80.21,25.27126612]
[1770844149410,1.36113389,80.244,80.21,25.27126612]
[1770844150293,1.36113389,80.244,80.21,12.467265]
[1770844150791,1.36113389,80.239,80.204,1.34047727]
[1770844151005,1.36113389,80.237,80.201,12.46866245]
[1770844151412,1.36113389,80.245,80.213,1.34047727]
[1770844151703,1.36113389,80.245,80.22,12.80400112]
[1770844152502,1.36113389,80.245,80.221,12.46556387]
[1770844152698,1.36113389,80.245,80.222,1.34047727]
[1770844153299,0.1,80.25,80.24,12.80400112]
[1770844153993,0.1,80.25,80.23,14.14447839]
[1770844154193,1.46113389,80.25,80.23,14.14447839]
[1770844154394,1.46113389,80.25,80.23,12.80400112]
[1770844154716,1.46113389,80.25,80.23,14.14447839]
[1770844155015,1.46113389,80.25,80.23,14.14205789]
[1770844155310,1.46113389,80.25,80.231,12.46401017]
[1770844155499,0.1,80.25,80.231,13.80448744]
[1770844155689,0.1,80.25,80.232,1.34047727]
[1770844156810,0.1,80.25,80.24,12.80158062]
[1770844158019,0.1,80.25,80.241,12.46245684]
[1770844158510,0.1,80.25,80.241,13.80293411]
[1770844158713,0.1,80.25,80.242,1.34047727]
[1770844158896,12.45791649,80.271,80.25,12.80158062]
[1770844159096,1.36113389,80.27,80.244,1.34047727]
[1770844160423,1.36113389,80.27,80.243,12.46214623]
[1770844160624,1.33612411,80.27,80.227,1.32955799]
[1770844160800,1.33612411,80.269,80.23,12.80158062]
[1770844161119,12.45826481,80.268,80.231,12.46401017]
[1770844161419,55.24,80.276,80.231,12.46401017]
[1770844161420,1.33612411,80.267,80.232,1.32955799]
[1770844161600,1.33612411,80.267,80.25,12.80158062]
[1770844162220,1.33612411,80.283,80.261,1.32955799]
[1770844162800,1.33612411,80.283,80.237,1.32955799]
[1770844163006,1.33612411,80.281,80.26,4.7767582]
[1770844163301,1.33612411,80.288,80.27,4.7767582]
[1770844164531,1.33612411,80.288,80.261,12.45935136]
[1770844164815,1.33612411,80.282,80.25,6.10631619]
[1770844164995,1.33612411,80.28,80.25,6.10631619]
[1770844165397,12.45655775,80.279,80.25,6.10631619]
[1770844165595,1.33612411,80.278,80.25,6.10631619]
[1770844166001,1.33612411,80.278,80.26,4.7767582]
[1770844166321,1.33612411,80.278,80.252,1.32955799]
[1770844167502,1.33612411,80.278,80.253,12.46059337]
[1770844168405,1.33612411,80.278,80.253,13.80585907]
[1770844168619,1.33612411,80.278,80.26,4.7767582]
[1770844169217,1.33612411,80.278,80.261,12.45935136]
[1770844170306,1.33612411,80.278,80.26,4.7767582]
[1770844170510,55.42,80.283,80.261,1.3452657]
[1770844170923,1.39110905,80.282,80.261,1.3452657]
[1770844171427,1.39110905,80.282,80.25,4.7767582]
[1770844171627,55.44,80.306,80.271,1.3452657]
[1770844171922,1.39110905,80.305,80.28,4.7767582]
[1770844172424,1.39110905,80.304,80.28,4.7767582]
[1770844172934,1.39110905,80.302,80.271,1.3452657]
[1770844173624,1.39110905,80.289,80.26,4.7767582]
[1770844173814,1.39110905,80.293,80.271,1.3452657]
[1770844174710,1.39110905,80.293,80.28,4.7767582]
[1770844174909,1.39110905,80.293,80.272,12.45764401]
[1770844175106,1.39110905,80.293,80.27,4.7767582]
[1770844175312,56.81110905,80.293,80.26,4.7767582]
[1770844175635,1.39110905,80.292,80.26,4.7767582]
[1770844176420,1.39110905,80.291,80.261,12.45935136]
[1770844177022,1.39110905,80.291,80.27,4.7767582]
[1770844177221,1.39110905,80.291,80.261,12.45935136]
[1770844179417,1.39110905,80.289,80.262,1.3452657]
[1770844180109,55.42,80.297,80.27,4.7767582]
[1770844180110,1.39110905,80.295,80.27,4.7767582]
[1770844180410,1.39110905,80.295,80.261,13.80461706]
[1770844181436,1.39110905,80.295,80.27,4.7767582]
[1770844181625,1.39110905,80.295,80.271,1.3452657]
[1770844182615,1.39110905,80.295,80.264,1.3452657]
[1770844183043,1.39110905,80.295,80.263,31.14760225]
[1770844183346,1.39110905,80.305,80.271,1.3452657]
[1770844183548,1.39110905,80.305,80.28,4.7767582]
[1770844183843,1.39110905,80.321,80.291,1.3452657]
[1770844184363,0.1,80.34,80.311,1.3452657]
[1770844184513,0.1,80.34,80.33,4.7767582]
[1770844184839,0.1,80.34,80.321,1.3452657]
[1770844185222,0.1,80.34,80.32,4.7767582]
[1770844185223,0.1,80.34,80.323,1.3452657]
[1770844185924,0.1,80.34,80.322,12.44988919]
[1770844186352,1.49110905,80.34,80.322,12.44988919]
[1770844186639,1.49110905,80.34,80.286,49.82143758]
[1770844186640,1.39110905,80.339,80.289,1.3452657]
[1770844186820,1.39110905,80.329,80.29,4.7767582]
[1770844187020,1.39110905,80.309,80.271,1.3452657]
[1770844187220,1.39110905,80.299,80.272,12.45764401]
[1770844189442,1.39110905,80.299,80.265,1.3452657]
[1770844190745,1.39110905,80.299,80.266,12.45857523]
[1770844190949,1.39110905,80.299,80.267,1.27452642]
[1770844191327,1.32800135,80.289,80.259,1.27452642]
[1770844192539,1.32800135,80.289,80.26,1.27452642]
[1770844192749,1.32800135,80.299,80.271,1.27452642]
[1770844193349,1.32800135,80.297,80.26,12.7924195]
[1770844193532,1.32800135,80.297,80.261,1.27452642]
[1770844193731,12.7924195,80.31,80.271,1.27452642]
[1770844194032,1.32800135,80.299,80.261,1.27452642]
[1770844194655,5.36086188,80.321,80.257,51.68]
[1770844194656,1.32800135,80.309,80.271,1.27452642]
[1770844194829,1.32800135,80.308,80.271,1.27452642]
[1770844195657,1.32800135,80.299,80.271,1.27452642]
[1770844195863,12.45190094,80.31,80.257,51.68]
[1770844195864,12.7924195,80.29,80.258,12.45977019]
[1770844196075,1.32800135,80.298,80.271,1.27452642]
[1770844196869,1.32800135,80.298,80.272,12.45764401]
[1770844197176,1.32800135,80.298,80.273,1.27452642]
[1770844199253,1.32800135,80.298,80.274,12.45733363]
[1770844199443,1.32800135,80.309,80.275,1.27452642]
[1770844201559,1.32800135,80.309,80.277,1.27452642]
[1770844202555,1.32800135,80.307,80.276,43.59958143]
[1770844202870,1.32800135,80.299,80.276,12.45702326]
[1770844203059,1.32800135,80.289,80.262,12.45919613]
[1770844203649,1.32800135,80.289,80.262,13.73372255]
[1770844203983,5.36086188,80.311,80.236,12.46323346]
[1770844203984,1.32800135,80.269,80.236,12.46323346]
[1770844204385,55.18,80.28,80.195,49.87828572]
[1770844204386,1.32800135,80.259,80.219,12.46587466]
[1770844204551,1.32800135,80.249,80.22,1.27452642]
[1770844204867,12.7924195,80.24,80.214,12.46650846]
[1770844205080,1.32800135,80.239,80.214,12.46650846]
[1770844206674,1.32800135,80.239,80.215,1.27452642]
[1770844206872,1.32800135,80.279,80.231,1.27452642]
[1770844207086,1.32800135,80.279,80.241,1.27452642]
[1770844207983,1.32800135,80.269,80.232,1.27452642]
[1770844208156,1.32800135,80.259,80.232,1.27452642]
[1770844209074,4.74315252,80.292,80.241,1.27452642]
[1770844209075,12.7924195,80.28,80.241,1.27452642]
[1770844209278,0.12586,80.292,80.271,1.27452642]
[1770844209859,1.32800135,80.291,80.262,1.27452642]
[1770844210180,0.12586,80.292,80.27,14.06694592]
[1770844210354,0.12586,80.292,80.271,1.27452642]
[1770844210751,1.45386135,80.292,80.261,1.27452642]
[1770844211289,1.45386135,80.292,80.27,12.7924195]
[1770844211477,1.45386135,80.292,80.262,12.45919613]
[1770844211786,1.32800135,80.289,80.262,12.45919613]
[1770844212165,31.13267683,80.302,80.262,12.45919613]
[1770844212166,1.32800135,80.304,80.271,1.27452642]
[1770844212365,1.32800135,80.322,80.29,12.7924195]
[1770844212663,1.32800135,80.319,80.29,12.7924195]
[1770844213382,4.61729252,80.326,80.281,1.27452642]
[1770844213383,1.32800135,80.317,80.282,12.45609227]
[1770844216271,1.32800135,80.289,80.25,1.27452642]
[1770844216476,1.32800135,80.289,80.261,1.27452642]
[1770844216684,1.32800135,80.299,80.27,12.7884675]
[1770844217085,49.76706683,80.375,80.291,1.27452642]
[1770844217292,1.32800135,80.329,80.301,1.27452642]
[1770844217898,12.447961,80.335,80.31,12.7884675]
[1770844218068,1.32800135,80.337,80.311,1.27452642]
[1770844218268,1.32800135,80.337,80.312,12.45143938]
[1770844218465,0.1,80.34,80.32,12.7884675]
[1770844219166,1.32800135,80.338,80.303,12.45273837]
[1770844219574,1.32800135,80.338,80.304,1.27452642]
[1770844219890,13.87519101,80.34,80.311,1.27452642]
[1770844220372,13.87519101,80.34,80.312,12.45143938]
[1770844220574,1.42800135,80.34,80.32,12.7884675]
[1770844221169,12.44725475,80.339,80.32,12.7884675]
[1770844222879,12.44725475,80.339,80.313,1.30081906]
[1770844223191,12.44725475,80.339,80.314,12.45112931]
[1770844223377,1.42800135,80.34,80.32,12.7884675]
[1770844223769,1.42800135,80.34,80.315,1.30081906]
[1770844223770,13.87522825,80.34,80.315,1.30081906]
[1770844224272,13.89496627,80.34,80.315,1.30081906]
[1770844225090,1.34773937,80.339,80.311,1.30081906]
[1770844226501,1.34773937,80.339,80.31,25.24016593]
[1770844226502,1.34773937,80.339,80.31,12.45169843]
[1770844227103,1.34773937,80.339,80.305,1.30081906]
[1770844228979,1.34773937,80.339,80.31,14.11702237]
[1770844229712,1.34773937,80.339,80.311,1.32855487]
[1770844231088,0.1,80.34,80.321,1.32855487]
[1770844232078,1.27423832,80.363,80.332,1.32855487]
[1770844232283,1.27423832,80.363,80.34,12.7884675]
[1770844232479,1.27423832,80.361,80.34,12.7884675]
[1770844232993,12.44299522,80.367,80.341,1.32855487]
[1770844232994,1.27423832,80.366,80.341,1.32855487]
[1770844233169,1.27423832,80.366,80.35,12.7884675]
[1770844233777,1.27423832,80.366,80.343,1.32855487]
[1770844235277,1.27423832,80.401,80.361,1.32855487]
[1770844235476,1.27423832,80.4,80.37,12.7884675]
[1770844235674,1.27423832,80.389,80.35,12.7884675]
[1770844235985,12.7884675,80.39,80.35,12.7884675]
[1770844235986,1.27423832,80.387,80.35,12.7884675]
[1770844236193,1.27423832,80.387,80.344,43.56268046]
[1770844236194,1.27423832,80.4,80.367,1.32855487]
[1770844236496,1.27423832,80.4,80.38,12.7884675]
[1770844236698,0.84410604,80.406,80.39,12.7884675]
[1770844237230,0.84410604,80.406,80.391,1.32855487]
[1770844237582,1.27423832,80.419,80.392,1.32855487]
[1770844237896,1.27423832,80.419,80.391,12.43920339]
[1770844238299,1.27423832,80.419,80.379,51.62]
[1770844238300,1.27423832,80.409,80.371,1.32855487]
[1770844238591,1.27423832,80.399,80.37,12.7884675]
[1770844238794,1.27423832,80.399,80.357,51.6]
[1770844238795,12.8884675,80.42,80.381,1.32855487]
[1770844238990,1.27423832,80.419,80.381,1.32855487]
[1770844239197,1.27423832,80.408,80.381,1.32855487]
[1770844239396,1.27423832,80.408,80.382,12.44059615]
[1770844240399,1.27423832,80.399,80.371,12.44229883]
[1770844240601,1.27423832,80.379,80.33,14.11702237]
[1770844240803,1.27423832,80.379,80.313,105.83591695]
[1770844240804,1.27423832,80.359,80.321,1.32855487]
[1770844241403,1.27423832,80.359,80.297,99.6294392]
[1770844241404,12.7884675,80.34,80.318,12.45045655]
[1770844241719,14.06270582,80.34,80.318,12.45045655]
[1770844242287,14.06270582,80.34,80.3,12.7884675]
[1770844242288,1.27423832,80.329,80.305,12.45252474]
[1770844242487,12.7884675,80.33,80.248,49.84526705]
[1770844242488,1.27423832,80.319,80.291,12.45458727]
[1770844242708,1.27423832,80.319,80.287,12.4552591]
[1770844243301,1.27423832,80.299,80.268,12.45811279]
[1770844243609,1.27423832,80.298,80.268,12.45811279]
[1770844243791,1.27423832,80.298,80.269,1.32855487]
[1770844243990,12.7884675,80.3,80.268,12.45811279]
[1770844243991,1.27423832,80.307,80.271,1.32855487]
[1770844244791,1.27423832,80.319,80.28,12.7884675]
[1770844244993,1.27423832,80.319,80.271,1.32855487]
[1770844244994,55.06,80.325,80.291,1.32855487]
[1770844245197,1.27423832,80.328,80.291,1.32855487]
[1770844245392,1.27423832,80.327,80.292,13.78309579]
[1770844245600,1.27423832,80.327,80.293,1.32855487]
[1770844245999,1.27423832,80.319,80.292,12.45454092]
[1770844247910,1.27423832,80.319,80.286,1.32855487]
[1770844248109,1.27423832,80.328,80.291,1.32855487]
[1770844248291,49.75949378,80.387,80.287,43.59360792]
[1770844248292,1.27423832,80.337,80.301,1.32855487]
[1770844248492,1.27423832,80.329,80.301,1.32855487]
[1770844249113,1.27423832,80.336,80.301,1.32855487]
[1770844250215,1.27423832,80.336,80.303,1.32855487]
[1770844251212,1.27423832,80.336,80.311,1.30872075]
[1770844251605,12.7884675,80.35,80.311,1.30872075]
[1770844251812,1.33627301,80.356,80.32,12.7884675]
[1770844252019,1.33627301,80.356,80.321,1.30872075]
[1770844252233,1.33627301,80.349,80.322,12.44988919]
[1770844253008,1.33627301,80.339,80.304,1.30872075]
[1770844254422,1.33627301,80.338,80.306,1.30872075]
[1770844254824,1.33627301,80.338,80.289,51.52]
[1770844254825,12.7884675,80.32,80.28,12.7884675]
[1770844255124,12.44725925,80.339,80.28,12.7884675]
[1770844255125,1.33627301,80.339,80.31,14.09718825]
[1770844255310,1.33627301,80.339,80.31,1.30872075]
[1770844255702,1.33627301,80.329,80.29,12.7884675]
[1770844256005,1.33627301,80.329,80.291,1.30872075]
[1770844256321,1.33627301,80.327,80.292,12.45454092]
[1770844257026,1.33627301,80.327,80.293,1.30872075]
[1770844257429,1.33627301,80.335,80.301,1.30872075]
[1770844258329,12.44725475,80.339,80.292,32.44507306]
[1770844258330,1.33627301,80.329,80.292,32.44507306]
[1770844258503,1.33627301,80.329,80.294,1.30872075]
[1770844258707,1.33627301,80.329,80.301,1.30872075]
[1770844261126,12.44895926,80.328,80.301,1.30872075]
[1770844261327,1.33627301,80.319,80.283,1.30872075]
[1770844261529,1.33627301,80.309,80.275,1.30872075]
[1770844262036,1.33627301,80.299,80.271,12.4577992]
[1770844262434,1.33627301,80.32,80.272,1.30872075]
[1770844262742,1.33627301,80.309,80.272,1.30872075]
[1770844263316,1.33627301,80.309,80.273,43.60121085]
[1770844263514,1.33627301,80.307,80.273,43.60121085]
[1770844263830,1.33627301,80.307,80.274,1.30872075]
[1770844265318,1.33627301,80.307,80.276,1.30872075]
[1770844265714,1.33627301,80.289,80.251,1.30872075]
[1770844265915,31.12729949,80.316,80.239,112.16490733]
[1770844265916,1.33627301,80.338,80.281,1.30872075]
[1770844266115,1.33627301,80.357,80.321,1.30872075]
[1770844266340,1.33627301,80.356,80.321,1.30872075]
[1770844266537,1.33627301,80.356,80.28,12.7884675]
[1770844266538,49.7412802,80.417,80.341,1.30872075]
[1770844266721,49.7412802,80.417,80.288,4.61729252]
[1770844266722,12.7884675,80.39,80.351,1.30872075]
[1770844267229,54.88,80.401,80.361,1.30872075]
[1770844267530,12.43781094,80.4,80.362,12.44369229]
[1770844268723,1.33627301,80.399,80.37,12.7884675]
[1770844269536,1.33627301,80.397,80.37,12.7884675]
[1770844269845,1.33627301,80.397,80.362,12.44369229]
[1770844270534,1.33627301,80.389,80.35,12.7884675]
[1770844270843,1.33627301,80.387,80.35,12.7884675]
[1770844271752,1.33627301,80.385,80.351,12.44539582]
[1770844272253,1.33627301,80.385,80.346,12.44602157]
[1770844273428,1.33627301,80.385,80.35,12.7884675]
[1770844273756,1.33627301,80.383,80.351,12.44539582]
[1770844274933,5.36086188,80.378,80.34,12.7884675]
[1770844275135,1.33627301,80.373,80.336,12.44757483]
[1770844275333,1.33627301,80.373,80.34,12.7884675]
[1770844276140,1.33627301,80.359,80.321,1.30872075]
[1770844276745,1.33627301,80.371,80.341,1.30872075]
[1770844277055,12.44214403,80.372,80.35,12.76692326]
[1770844277261,31.10090642,80.384,80.351,1.30872075]
[1770844277262,12.44028662,80.384,80.351,1.30872075]
[1770844277438,12.44028662,80.384,80.36,12.76692326]
[1770844277753,1.33627301,80.397,80.361,1.30872075]
[1770844278148,1.33627301,80.395,80.361,13.7524823]
[1770844278956,1.33627301,80.395,80.362,1.30872075]
[1770844279635,5.36086188,80.394,80.362,1.30872075]
[1770844279836,1.33627301,80.389,80.353,13.75376651]
[1770844281653,1.33436794,80.387,80.353,13.75376651]
[1770844282240,1.33436794,80.387,80.353,12.44504576]
[1770844282440,1.33436794,80.387,80.354,1.37683999]
[1770844282641,1.33436794,80.387,80.35,12.76692326]
[1770844282965,1.33436794,80.387,80.352,1.37683999]
[1770844283165,55.0,80.386,80.351,12.44539582]
[1770844283471,1.33436794,80.385,80.351,12.44539582]
[1770844283762,1.33436794,80.383,80.351,12.44539582]
[1770844285256,1.33436794,80.381,80.352,1.37683999]
[1770844287371,12.44059615,80.382,80.361,1.35563973]
[1770844289464,55.06,80.392,80.34,31.11762001]
[1770844289465,67.49910314,80.392,80.371,1.35563973]
[1770844289654,13.8243493,80.404,80.371,1.35563973]
[1770844289967,55.08,80.403,80.371,1.35563973]
[1770844290553,12.43719217,80.404,80.371,1.35563973]
[1770844290753,1.38715713,80.403,80.371,1.35563973]
[1770844291551,1.38715713,80.401,80.371,1.35563973]
[1770844292959,43.53125543,80.402,80.363,1.35563973]